[Event "Chpt Reg Jeunes Occitanie 2026 - Espalion"]
[Site "Espalion, France"]
[Round "4.1"]
[ECO "?"]
[Annotator "?"]
[TimeControl "1h30 + 30sec/cp"]

1. d4 {[%clk 1:30:57][%emt 0:00:02]} 1... d5 {[%clk 1:30:46][%emt 0:00:15]} 2.
Nc3 {[%clk 1:31:20][%emt 0:00:07]} 2... Nf6 {[%clk 1:30:57][%emt 0:00:18]} 3.
Bf4 {[%clk 1:31:45][%emt 0:00:05]} 3... c5 {[%clk 1:29:58][%emt 0:01:30]} 4.
e3 {[%clk 1:30:19][%emt 0:01:56]} 4... a6 {[%clk 1:28:09][%emt 0:02:18]} 5.
Nf3 {[%clk 1:28:12][%emt 0:02:37]} 5... Nc6 {[%clk 1:27:55][%emt 0:00:45]} 6.
Ne5 {[%clk 1:26:25][%emt 0:02:16]} 6... cxd4 {[%clk 1:26:03][%emt 0:02:24]} 7.
exd4 {[%clk 1:26:40][%emt 0:00:14]} 7... Qb6 {[%clk 1:26:06][%emt 0:00:27]} 8.
Nxc6 {[%clk 1:26:18][%emt 0:00:51]} 8... bxc6 {[%clk 1:22:57][%emt 0:03:40]}
9. Rb1 {[%clk 1:22:34][%emt 0:04:14]} 9... Bf5 {[%clk 1:21:13][%emt 0:02:14]}
10. Be2 {[%clk 1:15:48][%emt 0:07:15]} 10... e6 {[%clk 1:21:23][%emt 0:00:20]}
11. O-O {[%clk 1:15:07][%emt 0:01:11]} 11... Be7 {[%clk 1:10:43][%emt 0:11:10]}
 12. b4 {[%clk 1:08:31][%emt 0:07:05]} 12... O-O {[%clk 1:00:32][%emt 0:10:41]}
 13. Na4 {[%clk 1:07:50][%emt 0:01:11]} 13... Qa7 {[%clk 1:01:01][%emt
0:00:02]} 14. Nc5 {[%clk 1:08:02][%emt 0:00:18]} 14... a5 {[%clk 0:57:47][%emt
0:03:44]} 15. a3 {[%clk 1:02:13][%emt 0:06:18]} 15... Nd7 {[%clk 0:53:07][%emt
0:05:11]} 16. Bd3 {[%clk 1:00:32][%emt 0:02:11]} 16... Bxd3 {[%clk
0:51:42][%emt 0:01:55]} 17. Qxd3 {[%clk 1:00:26][%emt 0:00:36]} 17... Bxc5
{[%clk 0:51:12][%emt 0:01:01]} 18. bxc5 {[%clk 0:58:09][%emt 0:02:47]} 18...
e5 {[%clk 0:50:36][%emt 0:01:05]} 19. dxe5 {[%clk 0:52:09][%emt 0:06:29]}
19... Nxc5 {[%clk 0:48:25][%emt 0:02:42]} 20. Qd4 {[%clk 0:46:26][%emt
0:06:12]} 20... Qe7 {[%clk 0:41:13][%emt 0:07:43]} 21. Be3 {[%clk
0:44:14][%emt 0:02:41]} 21... Ne6 {[%clk 0:41:33][%emt 0:00:11]} 22. Qa4
{[%clk 0:43:17][%emt 0:01:26]} 22... Qc7 {[%clk 0:34:21][%emt 0:07:43]} 23. f4
{[%clk 0:41:52][%emt 0:01:55]} 23... Rfb8 {[%clk 0:28:58][%emt 0:05:53]} 24.
Kh1 {[%clk 0:36:51][%emt 0:05:28]} 24... Nf8 {[%clk 0:18:35][%emt 0:10:55]}
25. Bc5 {[%clk 0:36:01][%emt 0:01:21]} 25... Rb7 {[%clk 0:18:14][%emt 0:00:50]}
 26. Bd6 {[%clk 0:36:13][%emt 0:00:17]} 26... Qd7 {[%clk 0:18:16][%emt
0:00:29]} 27. c4 {[%clk 0:34:44][%emt 0:02:00]} 27... Rxb1 {[%clk
0:17:50][%emt 0:00:56]} 28. Rxb1 {[%clk 0:35:08][%emt 0:00:06]} 28... Qf5
{[%clk 0:17:54][%emt 0:00:26]} 29. Rg1 {[%clk 0:34:06][%emt 0:01:32]} 29...
Rc8 {[%clk 0:08:34][%emt 0:09:52]} 30. cxd5 {[%clk 0:32:34][%emt 0:02:01]}
30... cxd5 {[%clk 0:08:58][%emt 0:00:06]} 31. Qxa5 {[%clk 0:32:47][%emt
0:00:18]} 31... d4 {[%clk 0:06:52][%emt 0:02:35]} 32. Qd2 {[%clk 0:30:05][%emt
0:03:11]} 32... Ne6 {[%clk 0:07:07][%emt 0:00:16]} 33. Rf1 {[%clk
0:23:08][%emt 0:07:26]} 33... Rc2 {[%clk 0:06:00][%emt 0:01:38]} 34. Qd1
{[%clk 0:21:56][%emt 0:01:42]} 34... Qe4 {[%clk 0:05:18][%emt 0:01:12]} 35.
Qf3 {[%clk 0:16:56][%emt 0:05:30]} 35... Qxf3 {[%clk 0:05:30][%emt 0:00:18]}
36. gxf3 {[%clk 0:17:25]} 36... Nxf4 {[%clk 0:03:35][%emt 0:02:25]} 37. Rd1
{[%clk 0:17:25][%emt 0:00:30]} 37... d3 {[%clk 0:02:17][%emt 0:01:48]} 38. e6
{[%clk 0:16:31][%emt 0:01:24]} 38... Nxe6 {[%clk 0:01:59][%emt 0:00:48]} 39.
Rxd3 {[%clk 0:16:54][%emt 0:00:07]} 39... h6 {[%clk 0:01:55][%emt 0:00:35]}
40. h4 {[%clk 0:16:23][%emt 0:01:00]} 40... Rc4 {[%clk 0:01:59][%emt 0:00:27]}
41. Bg3 {[%clk 0:16:20][%emt 0:00:32]} 41... Nf4 {[%clk 0:01:57][%emt 0:00:31]}
 42. Rd7 {[%clk 0:15:22][%emt 0:01:29]} 42... Rc1+ {[%clk 0:01:55][%emt
0:00:32]} 43. Kh2 {[%clk 0:15:43][%emt 0:00:07]} 43... Rc2+ {[%clk
0:02:17][%emt 0:00:10]} 44. Kh1 {[%clk 0:16:04][%emt 0:00:09]} 44... Rc1+
{[%clk 0:02:10][%emt 0:00:38]} 45. Kh2 {[%clk 0:16:30][%emt 0:00:03]} 45...
Rc2+ {[%clk 0:02:30][%emt 0:00:10]} 46. Kh1 {[%clk 0:16:55][%emt 0:00:05]}
46... Rc1+ {[%clk 0:01:12][%emt 0:00:17]} 1/2-1/2

[White "DARTHENAY, Antoine"]
[Black "FOPPOLO, Marvin"]
[WhiteElo "1823"]
[BlackElo "1880"]
[Result "1/2-1/2"]
[Date "2026.03.05"]

[Event "Chpt Reg Jeunes Occitanie 2026 - Espalion"]
[Site "Espalion, France"]
[Round "4.2"]
[ECO "?"]
[Annotator "?"]
[TimeControl "1h30 + 30sec/cp"]

1. e4 {[%clk 1:30:58][%emt 0:00:02]} 1... c5 {[%clk 1:31:00]} 2. Nc3 {[%clk
1:31:21][%emt 0:00:07]} 2... Nc6 {[%clk 1:31:28][%emt 0:00:03]} 3. f4 {[%clk
1:31:45][%emt 0:00:05]} 3... g6 {[%clk 1:31:55][%emt 0:00:02]} 4. Nf3 {[%clk
1:32:08][%emt 0:00:07]} 4... Bg7 {[%clk 1:32:24][%emt 0:00:01]} 5. Bc4 {[%clk
1:32:29][%emt 0:00:10]} 5... e6 {[%clk 1:32:51][%emt 0:00:03]} 6. O-O {[%clk
1:32:50][%emt 0:00:08]} 6... Nge7 {[%clk 1:33:19][%emt 0:00:02]} 7. d3 {[%clk
1:33:11][%emt 0:00:09]} 7... d5 {[%clk 1:33:46][%emt 0:00:03]} 8. Bb3 {[%clk
1:33:34][%emt 0:00:08]} 8... O-O {[%clk 1:34:08][%emt 0:00:07]} 9. e5 {[%clk
1:33:43][%emt 0:00:21]} 9... Nf5 {[%clk 1:33:27][%emt 0:01:12]} 10. Ne2 {[%clk
1:27:24][%emt 0:06:48]} 10... f6 {[%clk 1:30:14][%emt 0:03:43]} 11. exf6
{[%clk 1:26:10][%emt 0:01:44]} 11... Bxf6 {[%clk 1:28:26][%emt 0:02:19]} 12.
c3 {[%clk 1:24:44][%emt 0:01:55]} 12... b6 {[%clk 1:21:20][%emt 0:07:36]} 13.
Qe1 {[%clk 1:17:20][%emt 0:07:53]} 13... Ba6 {[%clk 1:17:56][%emt 0:03:54]}
14. Ng3 {[%clk 1:10:33][%emt 0:07:17]} 14... Qd6 {[%clk 1:17:03][%emt 0:01:23]}
 15. Bc2 {[%emt 0:05:08]} 15... Rae8 {[%clk 1:15:50][%emt 0:01:40]} 16. Bd2
{[%clk 1:04:18][%emt 0:02:10]} 16... Re7 {[%clk 1:09:47][%emt 0:06:33]} 17.
Qf2 {[%clk 1:01:22][%emt 0:03:27]} 17... b5 {[%clk 1:00:50][%emt 0:09:27]} 18.
a3 {[%clk 0:58:08][%emt 0:03:44]} 18... Bb7 {[%clk 0:54:31][%emt 0:06:49]} 19.
Rae1 {[%clk 0:46:56][%emt 0:11:42]} 19... Rfe8 {[%clk 0:50:02][%emt 0:04:58]}
20. b4 {[%clk 0:34:40][%emt 0:12:47]} 20... d4 {[%clk 0:42:06][%emt 0:08:27]}
21. Ne4 {[%clk 0:33:21][%emt 0:01:49]} 21... dxc3 {[%clk 0:40:22][%emt
0:02:14]} 22. Nxd6 {[%clk 0:33:21][%emt 0:00:30]} 22... Nxd6 {[%clk
0:40:07][%emt 0:00:45]} 23. Be3 {[%clk 0:33:05][%emt 0:00:46]} 23... cxb4
{[%clk 0:40:10][%emt 0:00:27]} 24. axb4 {[%clk 0:32:52][%emt 0:00:43]} 24...
Nxb4 {[%clk 0:40:23][%emt 0:00:17]} 25. Bc5 {[%clk 0:32:08][%emt 0:01:13]}
25... Nxc2 {[%clk 0:40:51][%emt 0:00:02]} 26. Qxc2 {[%clk 0:32:25][%emt
0:00:13]} 26... Bxf3 {[%clk 0:40:06][%emt 0:01:15]} 27. Rxf3 {[%clk
0:32:22][%emt 0:00:32]} 27... Rd7 {[%clk 0:40:27][%emt 0:00:09]} 28. d4 {[%clk
0:31:58][%emt 0:00:54]} 28... Nf5 {[%clk 0:40:28][%emt 0:00:30]} 29. Rd3
{[%clk 0:24:27][%emt 0:08:00]} 29... Red8 {[%clk 0:39:52][%emt 0:01:07]} 30.
Kh1 {[%clk 0:20:44][%emt 0:04:13]} 30... Nxd4 {[%clk 0:38:43][%emt 0:01:39]}
31. Bxd4 {[%clk 0:20:59][%emt 0:00:15]} 31... Bxd4 {[%clk 0:38:51][%emt
0:00:21]} 32. Red1 {[%clk 0:21:06][%emt 0:00:23]} 32... b4 {[%clk
0:38:45][%emt 0:00:37]} 33. Rxd4 {[%clk 0:21:23][%emt 0:00:12]} 33... Rxd4
{[%clk 0:39:11]} 34. Rxd4 {[%clk 0:21:23]} 34... Rxd4 {[%clk 0:39:11]} 35. h3
{[%clk 0:18:41][%emt 0:03:47]} 35... Kf7 {[%clk 0:34:51][%emt 0:05:20]} 36.
Kh2 {[%clk 0:17:05][%emt 0:02:06]} 36... a5 {[%clk 0:34:45][%emt 0:00:35]} 37.
Qa4 {[%clk 0:16:04][%emt 0:01:31]} 37... Rd5 {[%clk 0:34:08][%emt 0:01:07]}
38. Kg3 {[%clk 0:15:48][%emt 0:00:46]} 38... h5 {[%clk 0:31:42][%emt 0:02:55]}
39. Kf3 {[%clk 0:15:08][%emt 0:01:11]} 39... Ke7 {[%clk 0:28:55][%emt 0:03:17]}
 40. Ke3 {[%clk 0:13:35][%emt 0:02:02]} 40... Rc5 {[%clk 0:28:26][%emt
0:01:00]} 41. Qc2 {[%clk 0:12:21][%emt 0:01:43]} 41... b3 {[%clk 0:27:59][%emt
0:00:58]} 42. Qxg6 {[%clk 0:03:35][%emt 0:09:16]} 42... c2 {[%clk
0:27:55][%emt 0:00:34]} 43. Qg7+ {[%clk 0:03:52][%emt 0:00:13]} 43... Kd6
{[%clk 0:28:21][%emt 0:00:03]} 44. Qf8+ {[%clk 0:03:30][%emt 0:00:53]} 44...
Kc6 {[%clk 0:28:49][%emt 0:00:01]} 45. Qe8+ {[%clk 0:03:34][%emt 0:00:26]}
45... Kd5 {[%clk 0:18:26][%emt 0:10:51]} 46. Qd7+ {[%clk 0:03:37][%emt
0:00:29]} 46... Kc4 {[%clk 0:17:47][%emt 0:01:09]} 47. Qa4+ {[%clk
0:02:47][%emt 0:01:21]} 47... Kd5 {[%clk 0:17:15][%emt 0:01:02]} 48. Qe8
{[%emt 0:00:15]} 48... Kc6 49. Qd7+ {[%emt 0:00:03]} 49... Kb7 50. Qb5+ {[%emt
0:00:04]} 50... Rc7 51. Qd7 {[%emt 0:00:02]} 51... Rc5 {[%emt 0:00:13]} 52.
Qa4 {[%emt 0:00:27]} 52... Ka7 53. Qxb3 {[%emt 0:00:02]} 1/2-1/2

[White "POSOCCO DE GRANDI, Marc"]
[Black "LADIER, Lucas"]
[WhiteElo "1871"]
[BlackElo "1833"]
[Result "1/2-1/2"]
[Date "2026.03.05"]

[Event "Chpt Reg Jeunes Occitanie 2026 - Espalion"]
[Site "Espalion, France"]
[Round "4.3"]
[ECO "?"]
[Annotator "?"]
[TimeControl "1h30 + 30sec/cp"]

1. d4 {[%clk 1:30:56][%emt 0:00:03]} 1... Nf6 {[%clk 1:30:53][%emt 0:00:06]}
2. c4 {[%clk 1:31:23][%emt 0:00:04]} 2... c5 {[%clk 1:31:17][%emt 0:00:06]} 3.
d5 {[%clk 1:31:33][%emt 0:00:21]} 3... e6 {[%clk 1:31:34][%emt 0:00:12]} 4.
Nc3 {[%clk 1:31:50][%emt 0:00:13]} 4... d6 {[%clk 1:31:38][%emt 0:00:26]} 5.
e4 {[%clk 1:31:47][%emt 0:00:33]} 5... g6 {[%clk 1:31:20][%emt 0:00:48]} 6.
Nf3 {[%clk 1:31:28][%emt 0:00:49]} 6... Bg7 {[%clk 1:31:25][%emt 0:00:24]} 7.
Bf4 {[%clk 1:30:53][%emt 0:01:05]} 7... exd5 {[%clk 1:28:52][%emt 0:03:04]} 8.
cxd5 {[%clk 1:30:35][%emt 0:00:49]} 8... O-O {[%clk 1:27:16][%emt 0:02:05]} 9.
Bd3 {[%clk 1:28:10][%emt 0:02:55]} 9... a6 {[%clk 1:25:55][%emt 0:01:52]} 10.
a4 {[%clk 1:28:12][%emt 0:00:28]} 10... Bg4 {[%clk 1:23:54][%emt 0:02:30]} 11.
h3 {[%clk 1:26:00][%emt 0:02:42]} 11... Bxf3 {[%clk 1:22:47][%emt 0:01:38]}
12. Qxf3 {[%clk 1:26:22][%emt 0:00:06]} 12... Qc7 {[%clk 1:22:15][%emt
0:01:02]} 13. Rc1 {[%clk 1:24:26][%emt 0:02:28]} 13... Nbd7 {[%clk
1:16:45][%emt 0:05:59]} 14. O-O {[%clk 1:21:55][%emt 0:03:01]} 14... Rfe8
{[%clk 1:12:04][%emt 0:05:11]} 15. Rc2 {[%clk 1:18:23][%emt 0:04:02]} 15...
Nh5 {[%clk 0:55:16][%emt 0:17:18]} 16. Bh2 {[%clk 1:15:33][%emt 0:03:20]}
16... Be5 {[%clk 0:53:11][%emt 0:02:35]} 17. Rfc1 {[%clk 1:12:51][%emt
0:03:12]} 17... Bxh2+ {[%clk 0:49:40][%emt 0:04:01]} 18. Kxh2 {[%clk
1:11:36][%emt 0:01:45]} 18... Ne5 {[%clk 0:49:52][%emt 0:00:18]} 19. Qd1
{[%clk 1:10:35][%emt 0:01:30]} 19... Nxd3 {[%clk 0:47:06][%emt 0:03:17]} 20.
Qxd3 {[%clk 1:08:40][%emt 0:02:25]} 20... Qe7 {[%clk 0:46:21][%emt 0:01:15]}
21. g3 {[%clk 1:01:41][%emt 0:07:29]} 21... Nf6 {[%clk 0:44:01][%emt 0:02:50]}
22. Re2 {[%clk 0:59:49][%emt 0:02:22]} 22... Nd7 {[%clk 0:42:27][%emt 0:02:04]}
 23. f4 {[%clk 0:58:21][%emt 0:01:58]} 23... Rab8 {[%clk 0:39:00][%emt
0:03:57]} 24. Rce1 {[%clk 0:54:31][%emt 0:04:20]} 24... Qf6 {[%clk
0:34:29][%emt 0:05:01]} 25. Rd1 {[%clk 0:53:05][%emt 0:01:57]} 25... Rec8
{[%clk 0:33:08][%emt 0:01:50]} 26. b3 {[%clk 0:49:00][%emt 0:04:36]} 26... h5
{[%clk 0:30:49][%emt 0:02:48]} 27. h4 {[%clk 0:43:31][%emt 0:05:59]} 27... Re8
{[%clk 0:26:52][%emt 0:04:27]} 28. Ra2 {[%clk 0:39:23][%emt 0:04:38]} 28...
Rbc8 {[%clk 0:25:11][%emt 0:02:11]} 29. Re2 {[%clk 0:35:49][%emt 0:04:04]}
29... Rb8 {[%clk 0:23:00][%emt 0:02:42]} 30. Ra2 {[%clk 0:34:04][%emt 0:02:14]}
 30... Rbc8 {[%clk 0:23:18][%emt 0:00:12]} 31. Re2 {[%clk 0:33:46][%emt
0:00:48]} 31... Rb8 {[%clk 0:23:38][%emt 0:00:10]} 32. Ra2 {[%clk
0:33:54][%emt 0:00:22]} 32... Rbc8 {[%clk 0:24:04][%emt 0:00:04]} 33. Re2
{[%clk 0:34:09][%emt 0:00:15]} 1/2-1/2

[White "VINCENT, Valentin"]
[Black "DOUCEMENT, Timothee"]
[WhiteElo "1639"]
[BlackElo "1856"]
[Result "1-0"]
[Date "2026.03.05"]

[Event "Chpt Reg Jeunes Occitanie 2026 - Espalion"]
[Site "Espalion, France"]
[Round "4.4"]
[ECO "?"]
[Annotator "?"]
[TimeControl "1h30 + 30sec/cp"]

1. e4 {[%clk 1:30:55][%emt 0:00:04]} 1... d5 {[%clk 1:29:12][%emt 0:01:50]} 2.
exd5 {[%clk 1:31:15][%emt 0:00:09]} 2... Qxd5 {[%clk 1:29:34][%emt 0:00:08]}
3. Nc3 {[%clk 1:31:36][%emt 0:00:08]} 3... Qa5 {[%clk 1:30:00][%emt 0:00:06]}
4. d4 {[%clk 1:31:52][%emt 0:00:12]} 4... c6 {[%clk 1:30:05][%emt 0:00:27]} 5.
Nf3 {[%clk 1:30:44][%emt 0:01:37]} 5... Nf6 {[%clk 1:29:41][%emt 0:00:54]} 6.
Bd2 {[%clk 1:27:34][%emt 0:03:39]} 6... Bg4 {[%clk 1:27:59][%emt 0:02:11]} 7.
Ne4 {[%clk 1:23:50][%emt 0:04:15]} 7... Qf5 {[%clk 1:23:29][%emt 0:05:02]} 8.
Nxf6+ {[%clk 1:22:41][%emt 0:01:38]} 8... Qxf6 {[%clk 1:23:34][%emt 0:00:25]}
9. Bc4 {[%clk 1:19:02][%emt 0:04:09]} 9... e6 {[%clk 1:22:48][%emt 0:01:17]}
10. c3 {[%clk 1:16:41][%emt 0:02:49]} 10... Bd6 {[%clk 1:21:38][%emt 0:01:41]}
11. h3 {[%clk 1:14:23][%emt 0:02:47]} 11... Bh5 {[%clk 1:21:17][%emt 0:00:50]}
12. g4 {[%clk 1:11:50][%emt 0:03:03]} 12... Bg6 {[%clk 1:17:59][%emt 0:03:50]}
13. Bg5 {[%clk 1:10:12][%emt 0:02:00]} 1-0

[White "CLAVERIE, Gabriel"]
[Black "AK, Maxime"]
[WhiteElo "1618"]
[BlackElo "1800"]
[Result "0-1"]
[Date "2026.03.05"]

[Event "Chpt Reg Jeunes Occitanie 2026 - Espalion"]
[Site "Espalion, France"]
[Round "4.5"]
[ECO "?"]
[Annotator "?"]
[TimeControl "1h30 + 30sec/cp"]

1. e4 {[%clk 1:30:58][%emt 0:00:01]} 1... e5 {[%clk 1:30:54][%emt 0:00:06]} 2.
Nf3 {[%clk 1:31:23][%emt 0:00:06]} 2... Nc6 {[%clk 1:31:20][%emt 0:00:04]} 3.
Bb5 {[%clk 1:31:47][%emt 0:00:06]} 3... Nf6 {[%clk 1:31:42][%emt 0:00:07]} 4.
O-O {[%clk 1:32:11][%emt 0:00:06]} 4... Nxe4 {[%clk 1:30:17][%emt 0:01:55]} 5.
d4 {[%clk 1:32:18][%emt 0:00:23]} 5... Nd6 {[%clk 1:30:19][%emt 0:00:28]} 6.
Bxc6 {[%clk 1:31:30][%emt 0:01:18]} 6... dxc6 {[%clk 1:30:42][%emt 0:00:07]}
7. dxe5 {[%clk 1:29:15][%emt 0:02:46]} 7... Nf5 {[%clk 1:31:02][%emt 0:00:10]}
8. Qxd8+ {[%clk 1:29:00][%emt 0:00:44]} 8... Kxd8 {[%clk 1:31:26][%emt
0:00:07]} 9. Nc3 {[%clk 1:27:33][%emt 0:01:57]} 9... Be7 {[%clk 1:31:07][%emt
0:00:48]} 10. b3 {[%clk 1:24:01][%emt 0:04:02]} 10... Ke8 {[%clk 1:28:39][%emt
0:02:58]} 11. Bb2 {[%clk 1:22:05][%emt 0:02:26]} 11... Be6 {[%clk
1:28:30][%emt 0:00:39]} 12. Rad1 {[%clk 1:19:13][%emt 0:03:22]} 12... Rd8
{[%clk 1:28:14][%emt 0:00:45]} 13. Rxd8+ {[%clk 1:18:46][%emt 0:00:58]} 13...
Kxd8 {[%clk 1:28:25][%emt 0:00:19]} 14. Ne4 {[%clk 1:17:30][%emt 0:01:46]}
14... Bd5 {[%clk 1:25:01][%emt 0:03:54]} 15. Rd1 {[%clk 1:17:44][%emt 0:00:17]}
 15... Kc8 {[%clk 1:25:25][%emt 0:00:06]} 16. Ned2 {[%clk 1:15:02][%emt
0:03:11]} 16... Rd8 {[%clk 1:21:28][%emt 0:04:26]} 17. Re1 {[%clk
1:15:04][%emt 0:00:28]} 17... g5 {[%clk 1:15:18][%emt 0:06:39]} 18. g4 {[%clk
1:12:48][%emt 0:02:47]} 18... Ng7 {[%clk 1:09:50][%emt 0:05:58]} 19. c4 {[%clk
1:12:30][%emt 0:00:49]} 19... Bxf3 {[%clk 1:10:10][%emt 0:00:09]} 20. Nxf3
{[%clk 1:12:52][%emt 0:00:08]} 20... Ne6 {[%clk 1:10:05][%emt 0:00:35]} 21. h3
{[%clk 1:10:43][%emt 0:02:38]} 21... Rd3 {[%clk 1:01:26][%emt 0:09:08]} 22.
Re3 {[%clk 1:09:51][%emt 0:01:24]} 22... Rd1+ {[%clk 1:01:40][%emt 0:00:14]}
23. Re1 {[%clk 1:08:50][%emt 0:01:33]} 23... Rd3 {[%clk 0:57:02][%emt 0:05:07]}
 24. Re3 {[%clk 1:09:12][%emt 0:00:09]} 24... Rd7 {[%clk 0:54:01][%emt
0:03:31]} 25. Kf1 {[%clk 0:59:44][%emt 0:09:58]} 25... Nf4 {[%clk
0:53:06][%emt 0:01:24]} 26. Ne1 {[%clk 0:59:40][%emt 0:00:35]} 26... Rd2
{[%clk 0:50:08][%emt 0:03:27]} 27. Bc1 {[%clk 0:59:23][%emt 0:00:48]} 27...
Rd1 {[%clk 0:49:50][%emt 0:00:47]} 28. Bb2 {[%clk 0:58:56][%emt 0:00:58]}
28... Rd2 {[%clk 0:48:28][%emt 0:01:51]} 29. Bc1 {[%clk 0:59:04][%emt 0:00:23]}
 29... Rxa2 {[%emt 0:01:15]} 30. Rf3 {[%clk 0:59:07]} 30... Bb4 {[%clk
0:36:26][%emt 0:12:13]} 31. Bxf4 {[%clk 0:57:18][%emt 0:02:18]} 31... gxf4
{[%clk 0:34:58][%emt 0:01:59]} 32. Rxf4 {[%clk 0:53:42][%emt 0:04:06]} 32...
Ra1 {[%clk 0:34:55][%emt 0:00:33]} 33. Re4 {[%clk 0:54:02][%emt 0:00:10]}
33... Kd7 {[%clk 0:31:54][%emt 0:03:31]} 34. f4 {[%clk 0:53:37][%emt 0:00:55]}
34... Rb1 {[%clk 0:30:31][%emt 0:01:51]} 35. Re3 {[%clk 0:53:49][%emt 0:00:19]}
 35... Bxe1 {[%clk 0:29:09][%emt 0:01:52]} 36. Rxe1 {[%clk 0:54:00][%emt
0:00:19]} 36... Rxb3 {[%clk 0:29:32][%emt 0:00:07]} 37. Kg2 {[%clk
0:53:09][%emt 0:01:22]} 37... Rb4 {[%clk 0:28:58][%emt 0:01:02]} 38. Rc1
{[%clk 0:53:28][%emt 0:00:12]} 38... b5 {[%clk 0:28:28]} 0-1

[White "LADIER, Lucas"]
[Black "BORCEUX, Theophile"]
[WhiteElo "1833"]
[BlackElo "1888"]
[Result "0-1"]
[Date "2026.03.06"]